Cogmind - Beta 12 @@@ ROGUE MODE // 2023.06.08 @ 15:02:59 Player: HeartGrenade Result: Destroyed by H-66 Slayer with Gauss Rifle Performance ------------- Evolutions (3) 1500 Regions Visited (13) 2600 Robots Destroyed (131) 655 Value Destroyed (3679) 3679 Prototype IDs (9) 180 Alien Tech Used (0) 0 Bonus (583) 583 TOTAL SCORE: 9197 Bonus ------- High Alert Combat Kills 201 Follower Combat Kills 107 Met Imprinter 300 Friendly Fire -25 Cogmind --------- Core Integrity 0/700 Matter 275/300 Energy 4/100 System Corruption 0% Temperature Cool (0) Movement Core (150) Ox2 Location -6/Proximity Caves Parts ------- > --- POWER (1) -------- (None) > --- PROPULSION (4) --- (None) > --- UTILITY (6) ------ Advanced Visual Processing Unit Makeshift Terrain Scan Processor Advanced Targeting Computer Advanced Targeting Computer Armor Integrity Analyzer Makeshift Hacking Suite > --- WEAPON (2) ------- RU-N14's Throwing Claymores > --- INVENTORY (5) ---- Advanced Beam Cannon Improved Grenade Launcher RU-N14's Throwing Claymores (10) CR-A16's Behemoth Slayer Peak State ------------ > --- POWER ------------ Light Ion Engine > --- PROPULSION ------- Aerolev Unit Aerolev Unit VTOL Module Makeshift Flight Unit > --- UTILITY ---------- Improved Cooling System Advanced Visual Processing Unit Makeshift Terrain Scan Processor Armor Integrity Analyzer Kinecellerator Makeshift Hacking Suite > --- WEAPON ----------- Gauss Rifle CR-A16's Behemoth Slayer > --- INVENTORY -------- Advanced Beam Cannon Gauss Rifle Improved Grenade Launcher RU-N14's Throwing Claymores RU-N14's Throwing Claymores [Rating: 53] Favorites ----------- Power Improved Ion Engine Engine Improved Ion Engine Power Core Micro Nuclear Core Propulsion Light Treads Treads Light Treads Hover Unit Aerolev Unit Flight Unit VTOL Module Utility High-capacity Storage Unit Device Improved Heat Sink Storage High-capacity Storage Unit Processor Improved Targeting Computer Hackware System Shield Protection Light Armor Plating Weapon Heavy Assault Rifle Energy Gun Precision Beam Rifle Ballistic Gun Heavy Assault Rifle Launcher Mini Grenade Launcher Special Weapon RU-N14's Throwing Claymores Slashing Weapon Great Axe Piercing Weapon CR-A16's Behemoth Slayer Build | -11 -10 -9 -9 -9 -8 -8 -7 -7 -7 -7 -7 -7 -6 ------- Run | Jun Mat Mat Min Exi Min Mat Fac Was Fac Low Low Zio Pro Slots Evolved 6 | . . 2 . . . 2 2 . . . . . . Power . | . . . . . . . . . . . . . . Propulsion 2 | . . 1 . . . 1 . . . . . . . Utility 4 | . . 1 . . . 1 2 . . . . . . Weapon . | . . . . . . . . . . . . . . Parts Attached 114 | 4 7 15 5 . 5 36 17 2 5 5 2 5 6 Power 9 | . . 1 1 . . 3 3 . 1 . . . . Engine 7 | . . 1 1 . . 3 1 . 1 . . . . Core 2 | . . . . . . . 2 . . . . . . Reactor . | . . . . . . . . . . . . . . Propulsion 32 | 2 . 6 1 . 1 16 2 1 1 1 . 1 . Treads 28 | 2 . 6 1 . 1 16 2 . . . . . . Leg . | . . . . . . . . . . . . . . Wheel . | . . . . . . . . . . . . . . Hover 2 | . . . . . . . . 1 1 . . . . Flight 2 | . . . . . . . . . . 1 . 1 . Utility 31 | . 3 4 1 . 1 8 6 . 1 2 . 2 3 Device 7 | . . . . . . 2 3 . 1 . . . 1 Storage 1 | . . 1 . . . . . . . . . . . Processor 9 | . 1 1 . . . 1 1 . . 2 . 1 2 Hackware 2 | . . . . . . . 1 . . . . 1 . Protection 12 | . 2 2 1 . 1 5 1 . . . . . . Artifact . | . . . . . . . . . . . . . . Weapon 42 | 2 4 4 2 . 3 9 6 1 2 2 2 2 3 Energy Gun 13 | . . . . . 1 8 3 1 . . . . . Energy Cannon . | . . . . . . . . . . . . . . Ballistic Gun 18 | 2 3 4 1 . 1 . . . 2 1 1 2 1 Ballistic Cannon . | . . . . . . . . . . . . . . Launcher 7 | . 1 . 1 . 1 1 1 . . 1 1 . . Special Weapon 1 | . . . . . . . . . . . . . 1 Impact Weapon . | . . . . . . . . . . . . . . Slashing Weapon 2 | . . . . . . . 2 . . . . . . Piercing Weapon 1 | . . . . . . . . . . . . . 1 Special Melee Weapon . | . . . . . . . . . . . . . . Unidentified Prototypes 2 | . . . . . . 1 . . . . . . 1 Parts Lost 38 | . 1 3 3 . 2 9 8 4 . . . . 8 Power 6 | . . . 1 . . 1 3 . . . . . 1 Propulsion 14 | . . 1 1 . . 3 2 3 . . . . 4 Utility 11 | . 1 1 1 . 1 3 2 . . . . . 2 Weapon 7 | . . 1 . . 1 2 1 1 . . . . 1 Highest Loss Streak 6 | . 1 2 3 . 2 3 3 4 . . . . 6 To Critical Strikes 1 | . . . . . . . . 1 . . . . . Average Slot Usage (%) 88 | . 77 97 91 100 100 94 89 72 38 54 69 85 78 Engine 6 | . . 9 3 11 11 8 4 . 2 7 7 7 3 Treads 26 | . 28 32 32 33 33 35 29 16 . . . . . Hover 2 | . . . . . . . . 1 14 15 15 15 9 Flight 1 | . . . . . . . . . . 2 7 12 14 Device 5 | . . . . . . 9 9 11 6 7 7 7 9 Storage 6 | . . 10 11 11 11 9 7 5 . . . . . Processor 9 | . 7 11 11 11 11 4 7 5 . 5 15 20 23 Hackware 1 | . . . . . . . 4 5 . . . 5 7 Protection 8 | . 13 11 11 11 11 8 7 5 . . . . . Energy Gun 6 | . . . . . 7 17 11 11 . . . . . Ballistic Gun 12 | . 28 22 22 22 14 . . . 13 14 15 15 7 Naked Turns 2 | . . . . . . . . 2 . . . . . Heaviest Build 70 | 2 5 56 56 52 52 67 70 57 15 15 15 15 17 Greatest Support 106 | 3 40 60 60 60 60 106 106 78 16 16 16 16 16 Greatest Overweight (x) 1 | . 1 1 . . . 1 1 1 . . . . 1 Average Overweight (x) . | . . . . . . . . . . . . . . Largest Inventory Capacity 20 | 5 5 20 20 20 20 20 20 20 5 5 5 5 5 Average Capacity 15 | 5 5 19 20 20 20 20 20 16 5 5 5 5 5 Most Carried 20 | 1 5 20 20 20 20 20 20 17 5 5 5 5 5 Average Carried 14 | . 4 13 18 20 18 18 18 14 4 4 4 4 4 Final Capacity 20 | 5 5 20 20 20 20 20 20 5 5 5 5 5 5 Final Carried 20 | 1 5 20 20 20 18 20 17 5 4 5 5 5 4 Class Distribution -------------------- 47% | Scavenger-Mutant 45% | Mutant 6% | Derelict-Mutant Dominant Class ---------------- Mutant | -10/Materials Scavenger-Mutant | -9/Materials Scavenger-Mutant | -9/Mines Scavenger-Mutant | -9/Exiles Scavenger-Mutant | -8/Mines Scavenger-Mutant | -8/Materials Mutant | -7/Factory Mutant | -7/Waste Mutant | -7/Factory Mutant | -7/Lower Caves Mutant | -7/Lower Caves Derelict-Mutant | -7/Zion Derelict-Mutant | -6/Proximity Caves Resources | -11 -10 -9 -9 -9 -8 -8 -7 -7 -7 -7 -7 -7 -6 ----------- Run | Jun Mat Mat Min Exi Min Mat Fac Was Fac Low Low Zio Pro Matter Collected 1901 | 240 165 333 130 . 142 386 175 . 106 82 48 44 50 Remotely . | . . . . . . . . . . . . . . Salvage Created 3948 | . 395 495 62 . 207 1385 1086 . 105 42 49 . 122 Parts 273 | . 31 36 9 . 26 80 65 . 4 5 3 . 14 Haulers Intercepted 6 | . 1 1 . . . 4 . . . . . . . Recyclers Shooed 4 | . . . . . . 4 . . . . . . . Parts Field Recycled . | . . . . . . . . . . . . . . Retrieved Matter . | . . . . . . . . . . . . . . Parts Self-Destructed 13 | . . . . . . . . . . 3 3 . 7 Prevented . | . . . . . . . . . . . . . . Kills | -11 -10 -9 -9 -9 -8 -8 -7 -7 -7 -7 -7 -7 -6 ------- Run | Jun Mat Mat Min Exi Min Mat Fac Was Fac Low Low Zio Pro Combat Hostiles Destroyed 109 | . 13 10 4 . 11 34 23 . . 3 4 . 7 Melee 1 | . . . . . . . 1 . . . . . . Guns 83 | . 11 10 2 . 10 31 19 . . . . . . Cannons 2 | . . . . . . . . . . . . . 2 AOE 20 | . 2 . 2 . 1 2 2 . . 3 4 . 4 Classes Destroyed 15 | . 4 2 2 . . 3 3 . . . . . 1 Worker 3 | . . . . . . . 2 . 1 . . . . Tunneler 5 | . . . 2 . 1 2 . . . . . . . Hauler 6 | . 1 1 . . . 4 . . . . . . . Recycler 3 | . . . . . . . 2 . 1 . . . . Mechanic 1 | . . 1 . . . . . . . . . . . Watcher 4 | . 1 . . . . 1 2 . . . . . . Swarmer 57 | . 6 3 3 . 9 11 12 . . 3 4 . 6 Grunt 26 | . 7 . . . 2 14 3 . . . . . . Brawler 1 | . . . . . . 1 . . . . . . . Duelist 1 | . . . . . . 1 . . . . . . . Sentry 16 | . . 7 . . . 6 3 . . . . . . Demolisher 1 | . . . 1 . . . . . . . . . . Hunter 2 | . . . . . . 1 1 . . . . . . Programmer 4 | . . . . . . . 4 . . . . . . Behemoth 1 | . . . . . . . . . . . . . 1 Best Kill Streak 8 | . 4 4 3 . 3 6 8 . 1 3 4 . 6 Combat Bots Only 7 | . 3 4 3 . 3 5 7 . . 3 4 . 6 Max Kills in Single Turn 4 | . 3 2 2 . 2 2 3 . 1 3 3 . 4 Gunslinging 1 | . . . . . 1 . . . . . . . . Exploded 3 | . 2 . 2 . 1 1 2 . . 3 3 . 3 Melee 1 | . . . . . . . 1 . . . . . . Uniques/NPCs Destroyed . | . . . . . . . . . . . . . . Combat | -11 -10 -9 -9 -9 -8 -8 -7 -7 -7 -7 -7 -7 -6 -------- Run | Jun Mat Mat Min Exi Min Mat Fac Was Fac Low Low Zio Pro Damage Taken 6737 | . 547 848 523 . 333 1455 1655 107 13 61 46 . 1149 Core 1140 | . 86 73 71 . 51 138 130 74 . . 15 . 502 Absorbed by Shields . | . . . . . . . . . . . . . . Core Remaining (%) 72 | 100 65 . . . 51 74 . . . . . . . Volleys Fired 310 | . 43 54 12 . 25 105 57 . 5 1 2 . 6 Largest 2 | . 2 2 2 . 2 2 2 . 2 1 1 . 2 Hottest 122 | . 40 46 46 . 88 122 122 . 56 36 36 . 56 Shots Fired 568 | . 82 101 22 . 44 193 104 . 9 2 2 . 9 Gun 553 | . 80 101 20 . 43 190 103 . 9 1 . . 6 Cannon . | . . . . . . . . . . . . . . Launcher 12 | . 2 . 2 . 1 3 1 . . 1 2 . . Special 3 | . . . . . . . . . . . . . 3 Kinetic 251 | . 80 101 20 . 33 1 . . 9 1 . . 6 Thermal 302 | . . . . . 10 189 103 . . . . . . Explosive 15 | . 2 . 2 . 1 3 1 . . 1 2 . 3 Electromagnetic . | . . . . . . . . . . . . . . Robot Hit Streak 22 | . 11 13 6 . 8 22 19 . 7 . 1 . 2 Robot Miss Streak 4 | . 2 3 3 . 4 3 3 . 1 1 2 . 4 Penetration Max . | . . . . . . . . . . . . . . Secondary Targets 4 | . . . . . 1 2 1 . . . . . . Max Gunslinging Chain 1 | . . . . . 1 1 1 . . . . . . Shots Hit Robots 424 | . 59 77 12 . 34 145 85 . 6 . 1 . 5 Core Hits 267 | . 33 23 7 . 27 109 48 . 2 4 4 . 10 Critical Kills 1 | . . 1 . . . . . . . . . . . Critical Parts Destroyed 1 | . 1 . . . . . . . . . . . . Critical Strikes 17 | . 1 1 . . . 8 7 . . . . . . Burn 15 | . . . . . . 8 7 . . . . . . Destroy 2 | . 1 1 . . . . . . . . . . . Melee Attacks 11 | . . . . . . . 9 . . . . . 2 Impact . | . . . . . . . . . . . . . . Slashing 9 | . . . . . . . 9 . . . . . . Piercing 2 | . . . . . . . . . . . . . 2 Sneak Attacks 2 | . . . . . . . 2 . . . . . . Combat Hostiles . | . . . . . . . . . . . . . . Follow-up Attacks . | . . . . . . . . . . . . . . Damage Inflicted 8810 | . 676 1068 295 . 634 2769 1904 7 115 182 298 . 862 Guns 6222 | . 477 970 189 . 529 2462 1459 . 115 . . . 21 Cannons . | . . . . . . . . . . . . . . Explosions 2164 | . 195 98 106 . 105 281 172 . . 182 298 . 727 Melee 313 | . . . . . . . 273 . . . . . 40 Ramming 37 | . 4 . . . . 26 . 7 . . . . . Kinetic 2195 | . 477 970 189 . 409 14 . . 115 . . . 21 Thermal 4125 | . . 98 . . 120 2448 1459 . . . . . . Explosive 2066 | . 195 . 106 . 105 281 172 . . 182 298 . 727 Electromagnetic . | . . . . . . . . . . . . . . Impact . | . . . . . . . . . . . . . . Slashing 347 | . . . . . . . 273 . . . . . 74 Piercing 40 | . . . . . . . . . . . . . 40 Highest Corruption 20 | . 1 . . . . 2 5 20 20 20 20 20 . Average Corruption 5 | . 1 . . . . 1 2 12 20 20 20 20 . Corruption Purged . | . . . . . . . . . . . . . . Corruption Blocked . | . . . . . . . . . . . . . . Effects 57 | . . . . . . 19 10 6 5 11 6 . . Message Errors 14 | . . . . . . 6 1 . 1 5 1 . . Matter Fused 8 | . . . . . . 3 3 1 . 1 . . . Heat Flow Errors 5 | . . . . . . 1 1 . 1 1 1 . . Energy Discharges 10 | . . . . . . 3 1 3 . 1 2 . . Data Loss (minor) 7 | . . . . . . 1 1 . 2 1 2 . . Data Loss (major) 6 | . . . . . . 3 1 1 . 1 . . . Misfires 2 | . . . . . . . 1 . . 1 . . . Alerts 1 | . . . . . . 1 . . . . . . . Misdirections 1 | . . . . . . . . 1 . . . . . Weapon Failures 3 | . . . . . . 1 1 . 1 . . . . Overload Shots . | . . . . . . . . . . . . . . Overflow Damage 229 | . . 23 . . 20 . 79 . . . 25 . 82 Projectiles 5 | . . . . . . . . . . . . . 5 Explosions 145 | . . 23 . . 20 . . . . . 25 . 77 Melee 79 | . . . . . . . 79 . . . . . . Knockbacks 1 | . . . . . . 1 . . . . . . . Impact 1 | . . . . . . 1 . . . . . . . Kinetic . | . . . . . . . . . . . . . . Secondary . | . . . . . . . . . . . . . . Self-Inflicted Damage 114 | . . 91 . . . . . . . 23 . . . Shots 2 | . . 1 . . . . . . . 1 . . . Rammed 3 | . 1 . . . . 1 . 1 . . . . . Targets Rammed 3 | . 1 . . . . 1 . 1 . . . . . Kicked . | . . . . . . . . . . . . . . Crushed . | . . . . . . . . . . . . . . Highest Temperature 252 | . 13 31 . . 162 171 252 . 89 221 133 . . Average Temperature 45 | . 4 7 . . 52 35 84 . 54 113 71 . . Received Heat Transfer 1425 | . 261 252 . . 126 513 177 . . 9 . . 87 Siege Activations . | . . . . . . . . . . . . . . Robots Corrupted . | . . . . . . . . . . . . . . Combat Hostiles . | . . . . . . . . . . . . . . Parts Fried . | . . . . . . . . . . . . . . Impact Corruptions . | . . . . . . . . . . . . . . Robots Melted 2 | . . . . . . 1 1 . . . . . . Combat Hostiles 2 | . . . . . . 1 1 . . . . . . Parts Melted 18 | . . . . . . 9 9 . . . . . . Heat Transferred 9171 | . . 150 . . 150 5282 3589 . . . . . . Parts Sabotaged . | . . . . . . . . . . . . . . Parts Stolen . | . . . . . . . . . . . . . . Parts Stripped . | . . . . . . . . . . . . . . Power Chain Reactions . | . . . . . . . . . . . . . . Missiles Intercepted . | . . . . . . . . . . . . . . Alert | -11 -10 -9 -9 -9 -8 -8 -7 -7 -7 -7 -7 -7 -6 ------- Run | Jun Mat Mat Min Exi Min Mat Fac Was Fac Low Low Zio Pro Peak Influence 684 | . 351 358 291 . 258 684 578 202 163 . . . . Initial 266 | . . 148 106 . . 63 266 202 113 . . . . Average 264 | . 165 220 161 . 145 417 315 193 135 . . . . Maximum Alert Level 2 | . 1 1 1 . 1 2 2 1 . . . . . Low Security (%) 39 | 100 62 44 71 . 72 12 13 23 100 . . . . Level 1 45 | . 37 55 28 . 27 44 67 76 . . . . . Level 2 14 | . . . . . . 42 19 . . . . . . Level 3 . | . . . . . . . . . . . . . . Level 4 . | . . . . . . . . . . . . . . Level 5 . | . . . . . . . . . . . . . . High Security . | . . . . . . . . . . . . . . Max Security . | . . . . . . . . . . . . . . Squads Dispatched 21 | . 7 1 . . . 8 4 . 1 . . . . Investigation 7 | . 3 . . . . 2 1 . 1 . . . . Extermination 2 | . . . . . . . 2 . . . . . . Reinforcement 7 | . 4 1 . . . 2 . . . . . . . Assault 1 | . . . . . . 1 . . . . . . . Garrison 4 | . . . . . . 3 1 . . . . . . Intercept . | . . . . . . . . . . . . . . Searches Triggered . | . . . . . . . . . . . . . . Construction Impeded . | . . . . . . . . . . . . . . Haulers Reinforced . | . . . . . . . . . . . . . . Active Scanning Responses . | . . . . . . . . . . . . . . Cargo Convoy Interrupts . | . . . . . . . . . . . . . . Stealth | -11 -10 -9 -9 -9 -8 -8 -7 -7 -7 -7 -7 -7 -6 --------- Run | Jun Mat Mat Min Exi Min Mat Fac Was Fac Low Low Zio Pro Distress Signals 10 | . 2 1 . . . 4 1 . . . . . 2 Communications Jammed . | . . . . . . . . . . . . . . Distress Signals . | . . . . . . . . . . . . . . Times Spotted 203 | . 24 18 9 . 18 54 30 5 4 9 4 . 28 Peak Tracking Total 19 | . 5 4 4 . 4 6 5 5 5 3 4 . 19 Tactical Retreats 15 | . 1 1 . . 3 3 2 . . 2 . . 3 Traps | -11 -10 -9 -9 -9 -8 -8 -7 -7 -7 -7 -7 -7 -6 ------- Run | Jun Mat Mat Min Exi Min Mat Fac Was Fac Low Low Zio Pro Traps Triggered 8 | . 2 . . . . 3 3 . . . . . . Indirectly . | . . . . . . . . . . . . . . Trap Hack Attempts . | . . . . . . . . . . . . . . Triggered . | . . . . . . . . . . . . . . Disarmed . | . . . . . . . . . . . . . . Reprogrammed . | . . . . . . . . . . . . . . Reused . | . . . . . . . . . . . . . . Traps Extracted . | . . . . . . . . . . . . . . Installed . | . . . . . . . . . . . . . . Triggered . | . . . . . . . . . . . . . . Machines | -11 -10 -9 -9 -9 -8 -8 -7 -7 -7 -7 -7 -7 -6 ---------- Run | Jun Mat Mat Min Exi Min Mat Fac Was Fac Low Low Zio Pro Machines Disabled 4 | . 2 1 . . . 1 . . . . . . . Max in Single Turn 1 | . 1 1 . . . 1 . . . . . . . Machines Repaired . | . . . . . . . . . . . . . . Machines Sabotaged . | . . . . . . . . . . . . . . Overloaded Fab Kills . | . . . . . . . . . . . . . . Hacking | -11 -10 -9 -9 -9 -8 -8 -7 -7 -7 -7 -7 -7 -6 --------- Run | Jun Mat Mat Min Exi Min Mat Fac Was Fac Low Low Zio Pro Machines Accessed 23 | . 4 3 . 1 . 7 5 . 3 . . . . Terminals 16 | . 4 3 . . . 5 2 . 2 . . . . Fabricators 1 | . . . . . . . 1 . . . . . . Repair Stations 1 | . . . . . . 1 . . . . . . . Recycling Units 2 | . . . . . . . 1 . 1 . . . . Scanalyzers 1 | . . . . . . 1 . . . . . . . Garrison Access 1 | . . . . . . . 1 . . . . . . Total Hacks 55 | . 11 8 . 1 . 23 7 . 5 . . . . Successful 20 | . 5 2 . 1 . 9 2 . 1 . . . . Failed 35 | . 6 6 . . . 14 5 . 4 . . . . Catastrophic 4 | . 1 . . . . 2 1 . . . . . . Database Lockouts . | . . . . . . . . . . . . . . Manual 30 | . 10 3 . . . 12 2 . 3 . . . . Terminals 38 | . 11 8 . . . 13 2 . 4 . . . . Fabricators 1 | . . . . . . . 1 . . . . . . Repair Stations 5 | . . . . . . 5 . . . . . . . Recycling Units 3 | . . . . . . . 2 . 1 . . . . Scanalyzers 5 | . . . . . . 5 . . . . . . . Garrison Access 2 | . . . . . . . 2 . . . . . . Terminal Hacks 10 | . 4 2 . 1 . 3 . . . . . . . Record 1 | . . . . 1 . . . . . . . . . Part Schematic 3 | . 3 . . . . . . . . . . . . Robot Analysis 2 | . 1 . . . . 1 . . . . . . . Prototype ID Bank 2 | . . 1 . . . 1 . . . . . . . Branch Access Points 1 | . . . . . . 1 . . . . . . . Hauler Manifests 1 | . . 1 . . . . . . . . . . . Fabricator Hacks 1 | . . . . . . . 1 . . . . . . Network Status 1 | . . . . . . . 1 . . . . . . Repair Station Hacks 1 | . . . . . . 1 . . . . . . . Scan Component 1 | . . . . . . 1 . . . . . . . Recycling Unit Hacks . | . . . . . . . . . . . . . . Scanalyzer 4 | . . . . . . 4 . . . . . . . Insert Component 2 | . . . . . . 2 . . . . . . . Analyze 2 | . . . . . . 2 . . . . . . . Garrison Access Hacks . | . . . . . . . . . . . . . . Unauthorized Hacks 4 | . 1 . . . . 1 1 . 1 . . . . Terminals 2 | . 1 . . . . 1 . . . . . . . Botnet 2 | . 1 . . . . 1 . . . . . . . Fabricators . | . . . . . . . . . . . . . . Repair Stations . | . . . . . . . . . . . . . . Recycling Units 2 | . . . . . . . 1 . 1 . . . . Recyclers 2 | . . . . . . . 1 . 1 . . . . Scanalyzers . | . . . . . . . . . . . . . . Garrison Access . | . . . . . . . . . . . . . . Data Cores Recovered . | . . . . . . . . . . . . . . Used . | . . . . . . . . . . . . . . Hacking Detections 20 | . 4 3 . . . 7 3 . 3 . . . . Full Trace Events 5 | . 2 . . . . 2 . . 1 . . . . Feedback Events 3 | . 1 . . . . 2 . . . . . . . Corruption 3 | . 1 . . . . 2 . . . . . . . Feedback Blocked . | . . . . . . . . . . . . . . Robot Schematics Acquired . | . . . . . . . . . . . . . . Robots Built . | . . . . . . . . . . . . . . Authchips . | . . . . . . . . . . . . . . Time . | . . . . . . . . . . . . . . Total Robot Build Rating . | . . . . . . . . . . . . . . Part Schematics Acquired 4 | . 3 . . . . 1 . . . . . . . Parts Built . | . . . . . . . . . . . . . . Authchips . | . . . . . . . . . . . . . . Time . | . . . . . . . . . . . . . . Total Part Build Rating . | . . . . . . . . . . . . . . Parts Repaired . | . . . . . . . . . . . . . . Time . | . . . . . . . . . . . . . . Parts Recycled . | . . . . . . . . . . . . . . Recycled Matter . | . . . . . . . . . . . . . . Retrieved Matter . | . . . . . . . . . . . . . . Retrieved Components . | . . . . . . . . . . . . . . Parts Scanalyzed 1 | . . . . . . 1 . . . . . . . Part Schematics Acquired 1 | . . . . . . 1 . . . . . . . Parts Damaged . | . . . . . . . . . . . . . . Bothacking | -11 -10 -9 -9 -9 -8 -8 -7 -7 -7 -7 -7 -7 -6 ------------ Run | Jun Mat Mat Min Exi Min Mat Fac Was Fac Low Low Zio Pro Used RIF Installer . | . . . . . . . . . . . . . . Robots Hacked . | . . . . . . . . . . . . . . Non-combat . | . . . . . . . . . . . . . . Combat . | . . . . . . . . . . . . . . Robot Hacks Applied . | . . . . . . . . . . . . . . Relay Couplers Released 7 | . . . . . . . 7 . . . . . . Programmers 7 | . . . . . . . 7 . . . . . . Fabnet Peak Effective % . | . . . . . . . . . . . . . . Robots Rewired . | . . . . . . . . . . . . . . Allies Hacked . | . . . . . . . . . . . . . . Hacks Repelled . | . . . . . . . . . . . . . . Allies | -11 -10 -9 -9 -9 -8 -8 -7 -7 -7 -7 -7 -7 -6 -------- Run | Jun Mat Mat Min Exi Min Mat Fac Was Fac Low Low Zio Pro Total Allies 5 | . . . 3 . . . . . . . . 2 . Largest Group 3 | . . . 3 3 2 . . . . . . 2 2 Highest-Rated Group 50 | . . . 40 40 32 . . . . . . 50 50 Highest-Rated Ally 25 | . . . 16 16 16 . . . . . . 25 25 Total Orders . | . . . . . . . . . . . . . . Ally Attacks 40 | . . . 23 . 15 . . . . . . . 2 Total Damage 427 | . . . 264 . 163 . . . . . . . . Kills 7 | . . . 4 . 3 . . . . . . . . Allies Corrupted . | . . . . . . . . . . . . . . Allies Melted . | . . . . . . . . . . . . . . Intel | -11 -10 -9 -9 -9 -8 -8 -7 -7 -7 -7 -7 -7 -6 ------- Run | Jun Mat Mat Min Exi Min Mat Fac Was Fac Low Low Zio Pro Robot Analysis Total 2 | . 1 . . . . 1 . . . . . . . Derelict Logs Recovered 7 | . . . 2 . . . . . . 2 1 1 1 Drone Launches . | . . . . . . . . . . . . . . Drone Recoveries . | . . . . . . . . . . . . . . Exploration | -11 -10 -9 -9 -9 -8 -8 -7 -7 -7 -7 -7 -7 -6 ------------- Run | Jun Mat Mat Min Exi Min Mat Fac Was Fac Low Low Zio Pro Turns Passed 7241 | 22 768 942 703 232 654 1602 1036 141 111 259 151 458 162 Spaces Moved 5434 | 29 546 456 405 146 357 726 489 118 192 501 309 909 251 Core 485 | 29 423 30 . . . . . 2 . . . . 1 Treads 2740 | . 123 426 405 146 357 726 489 68 . . . . . Legs . | . . . . . . . . . . . . . . Wheels . | . . . . . . . . . . . . . . Hover 2045 | . . . . . . . . 48 192 501 309 909 86 Flight 164 | . . . . . . . . . . . . . 164 Fastest Speed 42 | 50 50 100 160 160 160 156 152 50 46 46 46 46 42 Average Speed 107 | 50 108 158 160 160 160 159 160 113 46 46 46 46 50 Slowest Speed 240 | 50 160 240 160 160 160 240 232 232 50 46 46 46 110 Overloaded Moves . | . . . . . . . . . . . . . . Propulsion Burnouts . | . . . . . . . . . . . . . . Robots Hopped 2 | . . . . . . . . . . . . . 2 Cave-ins Triggered . | . . . . . . . . . . . . . . Exploration Rate (%) 51 | 3 78 42 92 49 62 66 14 67 5 69 46 86 45 Regions Visited 13 Branch Regions 7 Pre-discovered Areas 4 | . . . . 1 . . . . . 1 . 2 . Known Exits Taken 2 | . . . . . . 1 . . . 1 . . . Unknown Exits Taken 9 | 1 1 1 1 1 1 . . . 1 . 1 1 . Scrap Searched 11 | . . . 1 . 1 . . . . 3 3 2 1 Spaces Dug 2 | . . . . . . . 2 . . . . . . Terrain Destroyed 130 | . 6 31 20 . 11 32 5 . . 3 15 . 7 Melee 2 | . . . . . . . 2 . . . . . . Projectile 1 | . . . . . . . . . . . . . 1 AOE 127 | . 6 31 20 . 11 32 3 . . 3 15 . 6 Terrain Rammed . | . . . . . . . . . . . . . . Walls Destroyed . | . . . . . . . . . . . . . . Machines Disabled . | . . . . . . . . . . . . . . Actions | -11 -10 -9 -9 -9 -8 -8 -7 -7 -7 -7 -7 -7 -6 --------- Run | Jun Mat Mat Min Exi Min Mat Fac Was Fac Low Low Zio Pro Total 6234 | 33 657 585 437 145 396 982 618 121 201 525 314 947 273 Wait 269 | . 48 32 14 . 6 75 41 . . 18 . 28 7 Move 5419 | 28 546 455 404 145 356 725 489 117 191 500 308 908 247 Hop 2 | . . . . . . . . . . . . . 2 Pick Up 62 | 1 8 21 2 . 2 18 4 . . 1 1 3 1 Fast Attach 37 | 4 2 2 1 . . 8 5 2 4 3 . 3 3 Attach 31 | . 1 4 2 . 2 11 7 . 1 . . 1 2 Detach . | . . . . . . . . . . . . . . Swap 46 | . 4 9 2 . 3 17 5 . . 2 2 1 1 Drop 44 | . 5 8 . . 2 22 1 . . . 1 3 2 Fire 310 | . 43 54 12 . 25 105 57 . 5 1 2 . 6 Melee 11 | . . . . . . . 9 . . . . . 2 Ram 1 | . . . . . . . . 1 . . . . . Kick . | . . . . . . . . . . . . . . Crush 2 | . . . . . . 1 . 1 . . . . . Escape Stasis . | . . . . . . . . . . . . . . Rewire . | . . . . . . . . . . . . . . Trap . | . . . . . . . . . . . . . . Miscellaneous . | . . . . . . . . . . . . . . Route ------- -11/Junkyard -10/Materials (discovered 4 exits: *Mat x2 / [*Min x2]) -9/Materials (discovered 2 exits: *Mat / [*Min]) -9/Mines (discovered 4 exits: *Mat x2 / *Exi / *Zio) -9/Exiles -8/Mines -8/Materials (discovered 3 exits: *Fac x3) -7/Factory -7/Waste -7/Factory -7/Lower Caves -7/Lower Caves -7/Zion -6/Proximity Caves History --------- Turn | Location | Event 6 | -11/Junkyard | Discovered new exit (range 16) 23 | -11/Junkyard | Entered Materials 170 | -10/Materials | Discovered new exit (range 9) 301 | -10/Materials | Build established: Mutant 335 | -10/Materials | Discovered new exit (range 16) 521 | -10/Materials | Discovered new exit (range 8) 755 | -10/Materials | Discovered new exit (range 12) 791 | -10/Materials | Entered another Materials area 791 | -9/Materials | Evolved 2 slots: Propulsion x1, Utility x1 1197 | -9/Materials | Discovered new exit (range 12) 1357 | -9/Materials | Discovered new exit (range 5) 1456 | -9/Materials | Build established: Scavenger-Mutant 1733 | -9/Materials | Entered Mines 1734 | -9/Mines | A Derelict revealed a hidden shortcut to a safe place 1747 | -9/Mines | Assembled infested the area 1775 | -9/Mines | Discovered new exit (range 12) 1796 | -9/Mines | Lost 3 parts (1p1n1u) 1902 | -9/Mines | Assisted by bots powering up and referring to "LRC-V3" 1924 | -9/Mines | Learned location of 1 exit from Materials 1942 | -9/Mines | Learned Materials emergency access door positions 1942 | -9/Mines | Discovered new exit (range 6) 2120 | -9/Mines | Found a damaged Exp. Sensor Array with a note attached 2123 | -9/Mines | Found Prototype Device 2430 | -9/Mines | Discovered new exit (range 5) 2436 | -9/Mines | Entered Exiles 2436 | -9/Exiles | Accompanied by 3 allies 2476 | -9/Exiles | Met 8R-AWN 2502 | -9/Exiles | Met EX-HEX 2577 | -9/Exiles | Met EX-DEC 2584 | -9/Exiles | Learned location of Zion (-7) 2646 | -9/Exiles | Discovered new exit (range 15) 2668 | -9/Exiles | Entered Mines 2668 | -8/Mines | Accompanied by 3 allies 3272 | -8/Mines | Discovered new exit (range 9) 3322 | -8/Mines | Entered Materials 3322 | -8/Materials | Evolved 2 slots: Propulsion x1, Utility x1 3323 | -8/Materials | Identified exit to Factory 3340 | -8/Materials | Identified Exp. Sensor Array 3706 | -8/Materials | Discovered exit to Factory (range 7) 3763 | -8/Materials | Garrison activated, responded to threat 4019 | -8/Materials | Lost 3 parts (3n) 4572 | -8/Materials | Discovered exit to Factory (range 16) 4869 | -8/Materials | Build established: Mutant 4922 | -8/Materials | First assault squad dispatched 4924 | -8/Materials | Entered Factory 4924 | -7/Factory | Evolved 2 slots: Utility x2 5738 | -7/Factory | Destroyed 7 combat bots 5744 | -7/Factory | Lost 3 parts (2p1n) 5916 | -7/Factory | Garrison activated, responded to threat 5960 | -7/Factory | Sucked down chute 5960 | -7/Factory | Entered Waste 5975 | -7/Waste | EMP discharged 5975 | -7/Waste | System corruption reached 10% 5995 | -7/Waste | Spotted C-40 Crusher 6040 | -7/Waste | Spotted C-40 Crusher 6058 | -7/Waste | Spotted C-40 Crusher 6063 | -7/Waste | Spotted C-40 Crusher 6068 | -7/Waste | Crushed by Compactor (1 part destroyed, 1 dropped) 6071 | -7/Waste | Crushed by Compactor (1 part destroyed, 2 dropped) 6072 | -7/Waste | Released all parts (6) 6072 | -7/Waste | Spotted C-40 Crusher 6074 | -7/Waste | Crushed by Compactor (1 part destroyed) 6075 | -7/Waste | EMP discharged 6093 | -7/Waste | Discovered new exit (range 15) 6101 | -7/Waste | Entered Factory 6105 | -7/Factory | Lost 4 parts (3n1w) 6197 | -7/Factory | Discovered new exit (range 12) 6212 | -7/Factory | Entered Lower Caves 6439 | -7/Lower Caves | Identified exit to Lower Caves 6471 | -7/Lower Caves | Entered another Lower Caves area 6525 | -7/Lower Caves | Learned Factory garrison access intel 6594 | -7/Lower Caves | Encountered a Warlord checkpoint 6614 | -7/Lower Caves | Discovered new exit (range 18) 6622 | -7/Lower Caves | Entered Zion 6642 | -7/Zion | System corruption cleaned by Quarantine Array 6661 | -7/Zion | Given the Hacking Drone Bay 6674 | -7/Zion | Found CR-A16's Pointy Stick 6702 | -7/Zion | Learned location of Recycling (-7) 6811 | -7/Zion | Loaded intel: 5 derelict terminal locations 6819 | -7/Zion | Learned location of Warlord (-5) 6859 | -7/Zion | Learned location of 1 exit from Lower Caves 6902 | -7/Zion | Learned Factory terminal intel 6982 | -7/Zion | Found Prototype Special Weapon 6984 | -7/Zion | Found Prototype Special Weapon 7026 | -7/Zion | Gained Derelict followers 7042 | -7/Zion | Build established: Derelict-Mutant 7047 | -7/Zion | Discovered new exit (range 9) 7080 | -7/Zion | Entered Proximity Caves 7080 | -6/Proximity Caves | Accompanied by 2 allies 7082 | -6/Proximity Caves | Spotter reported a threat 7083 | -6/Proximity Caves | Spotter reported a threat 7097 | -6/Proximity Caves | Spotted B-75 Beast 7112 | -6/Proximity Caves | Revealed the true nature of CR-A16's Pointy Stick 7116 | -6/Proximity Caves | Destroyed B-75 Beast 7175 | -6/Proximity Caves | Core integrity fell below 50% 7196 | -6/Proximity Caves | Learned Factory garrison access intel 7214 | -6/Proximity Caves | Spotted B-75 Beast 7215 | -6/Proximity Caves | Entered a huge 0b10 base via the front door 7236 | -6/Proximity Caves | Identified RU-N14's Throwing Claymores (x2) 7237 | -6/Proximity Caves | Core integrity fell below 20% 7238 | -6/Proximity Caves | Spotter reported a threat 7238 | -6/Proximity Caves | Spotter reported a threat 7242 | -6/Proximity Caves | Destroyed by H-66 Slayer with Gauss Rifle Last Messages --------------- 07230_ VTOL Module destroyed. 07231_ Acquired Adv. Targeting Computer. 07235_ Mak. Flight Unit destroyed. 07235_ Slug penetrates Reinforced Barrier. 07236_ Identified RU-N14's Throwing Claymores. 07236_ Slug penetrates Reinforced Barrier. 07238_ ALERT: Unidentified potential threat approaching Complex 0b10. 07239_ Slug penetrates Reinforced Barrier. 07239_ S-27 Virus destroyed. 07239_ Destroyed Lgt. Nuclear Core. 07239_ Destroyed VTOL Module. 07239_ S-27 Virus destroyed. 07239_ Destroyed Lgt. Nuclear Core. 07239_ S-27 Virus destroyed. 07239_ Critical hit (Burn: +37). 07239_ Slug penetrates Reinforced Barrier. 07241_ U-05 Engineer lays Concrete. 07242_ Destroyed VTOL Module. 07242_ S-27 Virus destroyed. 07242_ Slug penetrates Reinforced Barrier. Map ----- +----------------------------------------------------+ | | | | | | | | | | | | | ?????????????????????????????????????????????????? | | ?????????????????????????????????????????????????? | | ?????????????????????????????????????????????????? | | ?????????????????????????????????????????????????? | | ?????????????????????????????????????????????????? | | ?????????????????????????????????????????????????? | | ?????????????????????????????????????????????????? | | ?????????????????????????????????????????????????? | | ?????????????????????????????????????????????????? | | ?????????????????????????????????????????????????? | | ?????????????????????????????????????????????????? | | ?????????????????????????????????????????????????? | | ?????????????????????????????????????????????????? | | ?????????????????????????????????????????????????? | | ?????????????????????????????????????????????????? | | ?????????????????????????????????????????????????? | | ?????????????????????????????????????????????????? | | ????????#####################????????????????????? | | ????????? | !!!!#????????????????????? | | ??????? "?? ?????# @ #????????????????????? | | ??????? " ? =*!!#???????????? ???????? | | ??????" " ## ## % #####+##### "??????? | | ??????" " ??????? | | ????" n g ??????? | | ????" ??????? | | ????" ## ######lb###+###### "??????? | | ????? ??? ???????# #?? ???????? ???????? | | ?????? ??????????# u#??? #??????????????????? | | ?????? ?????????????# #???? #??????????????????? | | ?????? ??????????????# #?????#??????????????????? | | ?????? ??????????????# #????????????????????????? | | ?????# #?????????????# #????????????????????????? | | ?????# #?????????????# #????????????????????????? | | ?????# #????????###### ######???????????????????? | | ?????# #????????# #???????????????????? | | ?????# #????????# #???????????????????? | | ?????# #????????# #???????????????????? | | ?????# #????????# #???????????????????? | | ?????# ########## """" #???????????????????? | | ?????# """" ???????????????? | | ?????# """" ?????????????? | | ?????# ########## """" #######?????????????? | | ###### #####????# #???????????????????? | | # #???? #???????????????????? | +----------------------------------------------------+ Best States ------------- Heat Dissipation 67 Energy Generation 15 Energy Capacity 265 Matter Stores 300 Matter Capacity 300 Sight Range 20 Terrain Scan Density 135 Armor Coverage 600 Evasion (%) 61 Targeting Accuracy 16 Core Analysis 6 Armor Integrity Analysis 30 Recoil Reduction 4 Kinecelleration 30 Offensive Hacking 11 Defensive Hacking 10 Item Schematics ----------------- Huge Storage Unit | -10/Materials | Hacked Seismic Detector | -10/Materials | Hacked Hcp. Storage Unit | -10/Materials | Hacked Exp. Sensor Array | -8/Materials | Scanalyzed Robot Schematics ------------------ None Fabricated ------------ Nothing Alien Tech Used ----------------- None Achievements -------------- None Challenges ------------ None Game ------ Seed GrapheneTerrabombCannon Manual? 0 Play Time 01:08:52 Cumulative 324.1 hours Start 2023.06.07 @ 16:14:30 End 2023.06.08 @ 15:02:59 Sessions 3 Manual Loads 0 Difficulty Rogue Special Mode None Game No. 133 Rogue 133 Adventurer 0 Explorer 0 Win Type - Total 14 Types 5/2/3/1/1/0/1/1/0 Lore% 86 Gallery% 84 Achievement% 71 Wizard Run 0 Options --------- ASCII 0 Keyboard 1 Movement Numpad Keybinds 0 Fullscreen 2 Font 18/X11 Map View 76x50 Tactical HUD 1 Map Filters NONE Filters NONE Steam 1 RUN: 507e70da-ea5d-4d85-b42a-ecab4e6dcbd1